fUST/lending_fUST_20250921
["ID","MTS","AMOUNT","RATE_DAILY","PERIOD"]
[386611720,1758426137932,-498.9343242,0.00019375,2]
[386611721,1758426137964,-480.0,0.00019375,2]
[386611722,1758426137995,-1494.38,0.00019422,2]
[386611723,1758426138022,-500.0,0.000196,2]
[386611724,1758426138051,-500.0,0.000196,2]
[386611725,1758426138081,-300.0,0.00019648,2]
[386611726,1758426138110,-1200.0,0.00019648,2]
[386611727,1758426138229,-53.3813516,0.00019649,2]
[386611728,1758426178028,-855.13,0.00019375,2]
[386611729,1758426178059,-480.0,0.00019375,2]
[386611730,1758426178089,-487.4686484,0.00019649,2]
[386611731,1758426178120,-513.44,0.00019649,2]
[386611732,1758426178151,-2452.1727032,0.00019649,2]
[386611733,1758426178228,-423.5872968,0.00019649,2]
[386611735,1758426223156,-480.0,0.00019375,2]
[386611736,1758426223186,-346.75959457,0.00019375,2]
[386611737,1758426223216,-1250.86,0.00019375,2]
[386611738,1758426223245,-1499.49,0.0001943,2]
[386611739,1758426223275,-677.99,0.00019475,2]
[386611740,1758426223303,-480.0,0.00019649,2]
[386611741,1758426223330,-234.56281509,0.00019649,2]
[386611742,1758426223449,-60.68518068,0.00019649,2]
[386611744,1758426303293,-158.557979,0.00018851,2]
[386611745,1758426303324,-492.95688744,0.00019375,2]
[386611746,1758426303355,-480.0,0.00019375,2]
[386611747,1758426303387,-231.12138455,0.00019375,2]
[386611748,1758426303420,-480.0,0.00019375,2]
[386611749,1758426303451,-1480.4,0.00019431,2]
[386611750,1758426303481,-191.0,0.00019648,2]
[386611751,1758426303511,-300.0,0.00019648,2]
[386611752,1758426303542,-300.0,0.00019648,2]
[386611753,1758426303570,-173.0,0.00019648,2]
[386611754,1758426303602,-595.3726787,0.00019649,2]
[386611755,1758426303837,-235.19214062,0.00019649,2]
[386611756,1758426388502,-222.26250182,0.00019275,2]
[386611757,1758426388535,-480.0,0.00019375,2]
[386611758,1758426388567,-480.0,0.00019375,2]
[386611759,1758426388602,-1769.39499636,0.00019375,2]
[386611760,1758426388688,-4096.69500364,0.00019375,2]
[386611761,1758426388750,-480.0,0.00019375,2]
[386611762,1758426388919,-2636.11,0.00019375,2]
[386611763,1758426388948,-1461.56,0.0001944,2]
[386611764,1758426388976,-300.0,0.00019648,2]
[386611765,1758426389064,-244.67,0.00019649,2]
[386611766,1758426398373,-298.68466858,0.00019439,2]
[386611767,1758426398402,-221.37376477,0.00019648,2]
[386611768,1758426398432,-191.98052703,0.00019648,2]
[386611769,1758426398462,-251.5,0.00019649,2]
[386611770,1758426398490,-480.0,0.00019649,2]
[386611771,1758426398519,-855.13,0.00019649,2]
[386611772,1758426398546,-480.0,0.00019649,2]
[386611773,1758426398577,-480.0,0.00019649,2]
[386611774,1758426398609,-1250.86,0.00019649,2]
[386611775,1758426398636,-480.0,0.00019649,2]
[386611776,1758426398786,-20.95207924,0.00019649,2]
[386611777,1758426428543,-480.0,0.00019375,2]
[386611778,1758426428573,-300.0,0.00019648,2]
[386611779,1758426428604,-459.04792076,0.00019649,2]
[386611780,1758426428632,-480.0,0.00019649,2]
[386611781,1758426428666,-695.82415848,0.00019649,2]
[386611782,1758426428778,-5170.26584152,0.00019649,2]
[386611783,1758426610089,-292.50912545,0.00018714,2]
[386611784,1758426611534,-56.00357365,0.00018714,2]
[386611799,1758426632227,-300.0,0.00019374,2]
[386611800,1758426632239,-480.0,0.00019375,2]
[386611801,1758426632250,-586.47,0.00019375,2]
[386611802,1758426632261,-480.0,0.00019375,2]
[386611803,1758426632270,-1146.62,0.00019375,2]
[386611804,1758426632280,-358.06387741,0.00019375,2]
[386611805,1758426632290,-1200.0,0.00019648,2]
[386611806,1758426632299,-480.0,0.00019649,2]
[386611807,1758426632309,-2636.11,0.00019649,2]
[386611808,1758426632319,-480.0,0.00019649,2]
[386611809,1758426632328,-480.0,0.00019649,2]
[386611810,1758426632339,-586.47,0.00019649,2]
[386611811,1758426632348,-480.0,0.00019649,2]
[386611812,1758426632357,-1146.62,0.00019649,2]
[386611814,1758426632367,-219.71795979,0.00019743,2]
[386611816,1758426632376,-483.81586965,0.00019747,2]
[386611818,1758426632387,-480.0,0.00019747,2]
[386611819,1758426632396,-480.0,0.00019747,2]
[386611820,1758426632405,-480.0,0.00019747,2]
[386611821,1758426632415,-500.58,0.00019747,2]
[386611822,1758426632424,-205.09339638,0.00019747,2]
[386611823,1758426632434,-500.0,0.00019748,2]
[386611825,1758426632443,-486.47099121,0.00019748,2]
[386611827,1758426632453,-516.71834696,0.00019748,2]
[386611829,1758426632462,-480.0,0.00019748,2]
[386611831,1758426632471,-483.49525876,0.00019748,2]
[386611833,1758426632481,-480.0,0.00019748,2]
[386611835,1758426632490,-480.0,0.00019748,2]
[386611837,1758426632499,-481.85333816,0.00019748,2]
[386611839,1758426632508,-495.27914464,0.00019748,2]
[386611840,1758426632517,-482.93999518,0.00019748,2]
[386611842,1758426632527,-493.25565324,0.00019748,2]
[386611844,1758426632536,-482.1016686,0.00019748,2]
[386611846,1758426632545,-480.0,0.00019748,2]
[386611848,1758426632554,-501.09675409,0.00019748,2]
[386611850,1758426632563,-483.9748714,0.00019748,2]
[386611853,1758426632573,-480.0,0.00019748,2]
[386611854,1758426632582,-487.80972206,0.00019748,2]
[386611857,1758426632592,-486.18754599,0.00019748,2]
[386611858,1758426632601,-580.33435664,0.00019748,2]
[386611860,1758426632610,-480.0,0.00019748,2]
[386611862,1758426632619,-952.44,0.00019748,2]
[386611864,1758426632628,-711.03,0.00019748,2]
[386611866,1758426632638,-480.0,0.00019748,2]
[386611868,1758426632647,-508.71087919,0.00019748,2]
[386611870,1758426632657,-480.0,0.00019748,2]
[386611872,1758426632666,-783.87,0.00019748,2]
[386611874,1758426632675,-587.92,0.00019748,2]
[386611876,1758426632684,-492.16724534,0.00019748,2]
[386611878,1758426632694,-495.78,0.00019748,2]
[386611880,1758426632703,-432.0,0.00019748,2]
[386611882,1758426632713,-383.88624291,0.00019748,2]
[386611884,1758426632722,-84.21827573,0.00019748,2]
[386611909,1758426638065,-681.41,0.00019747,2]
[386611910,1758426638075,-405.78623653,0.00019748,2]
[386611911,1758426638084,-816.98,0.00019748,2]
[386611912,1758426638094,-480.0,0.00019748,2]
[386611913,1758426638105,-480.0,0.00019748,2]
[386611914,1758426638115,-523.47,0.00019748,2]
[386611915,1758426638124,-480.0,0.00019748,2]
[386611916,1758426638133,-480.0,0.00019748,2]
[386611917,1758426638143,-168.0,0.0001981,2]
[386611918,1758426638152,-300.919,0.00019823,2]
[386611919,1758426638163,-406.28143582,0.00019823,2]
[386611920,1758426638172,-649.74,0.00019848,2]
[386611921,1758426638181,-151.0,0.00019888,2]
[386611923,1758426638191,-151.0,0.00019888,2]
[386611925,1758426638201,-250.0,0.00019888,2]
[386611927,1758426638211,-151.0,0.00019888,2]
[386611929,1758426638220,-500.0,0.00019888,2]
[386611931,1758426638230,-151.0,0.00019888,2]
[386611933,1758426638239,-250.0,0.00019888,2]
[386611935,1758426638249,-500.0,0.00019888,2]
[386611936,1758426638258,-151.0,0.00019888,2]
[386611937,1758426638268,-250.0,0.00019888,2]
[386611938,1758426638277,-151.0,0.00019888,2]
[386611939,1758426638287,-500.0,0.00019888,2]
[386611940,1758426638296,-500.0,0.00019888,2]
[386611941,1758426638306,-250.0,0.00019888,2]
[386611942,1758426638315,-151.0,0.00019888,2]
[386611943,1758426638325,-500.0,0.00019888,2]
[386611944,1758426638335,-250.0,0.00019888,2]
[386611945,1758426638345,-500.0,0.00019888,2]
[386611946,1758426638354,-500.0,0.00019888,2]
[386611947,1758426638363,-500.0,0.00019888,2]
[386611948,1758426638374,-250.0,0.00019888,2]
[386611949,1758426638384,-500.0,0.00019888,2]
[386611950,1758426638393,-250.0,0.00019888,2]
[386611951,1758426638403,-500.0,0.00019888,2]
[386611952,1758426638412,-250.0,0.00019888,2]
[386611953,1758426638422,-500.0,0.00019888,2]
[386611954,1758426638431,-500.0,0.00019888,2]
[386611955,1758426638441,-254.89225027,0.00019888,2]
[386611956,1758426638450,-250.0,0.00019888,2]
[386611957,1758426638460,-500.0,0.00019888,2]
[386611958,1758426638469,-500.0,0.00019888,2]
[386611959,1758426638479,-396.15442356,0.00019888,2]
[386611960,1758426638488,-500.0,0.00019888,2]
[386611961,1758426638497,-500.0,0.00019888,2]
[386611962,1758426638507,-515.32588682,0.00019888,2]
[386611963,1758426638517,-500.0,0.00019888,2]
[386611964,1758426638526,-1000.0,0.00019888,2]
[386611965,1758426638536,-1000.0,0.00019888,2]
[386611966,1758426638546,-1000.0,0.00019888,2]
[386611967,1758426638555,-1000.0,0.00019888,2]
[386611968,1758426638564,-1000.0,0.00019888,2]
[386611969,1758426638573,-1000.0,0.00019888,2]
[386611970,1758426638584,-1000.0,0.00019888,2]
[386611971,1758426638593,-1000.0,0.00019888,2]
[386611972,1758426638602,-952.99,0.00019888,2]
[386611973,1758426638612,-13620.40795509,0.000199,2]
[386611974,1758426638622,-480.0,0.00019923,2]
[386611975,1758426638631,-480.0,0.00019923,2]
[386611976,1758426638640,-480.0,0.00019923,2]
[386611977,1758426638650,-480.0,0.00019923,2]
[386611978,1758426638659,-480.0,0.00019923,2]
[386611979,1758426638668,-480.0,0.00019923,2]
[386611980,1758426638678,-480.0,0.00019923,2]
[386611981,1758426638687,-480.0,0.00019923,2]
[386611982,1758426638697,-1198.65543703,0.00019923,2]
[386611983,1758426638709,-4149.58334033,0.00019923,2]
[386611984,1758426638731,-751.21,0.00019748,2]
[386611985,1758426638858,-517.85122264,0.00019923,2]
[386611986,1758426638873,-491.25559302,0.00019923,2]
[386611987,1758426638884,-2636.11,0.00019923,2]
[386611988,1758426638894,-151.0,0.00019923,2]
[386611989,1758426638904,-258.7125882,0.00019923,2]
[386611990,1758426638916,-221.2874118,0.00019923,2]
[386611991,1758426638925,-151.0,0.00019923,2]
[386611992,1758426638934,-151.0,0.00019923,2]
[386611993,1758426638944,-480.0,0.00019923,2]
[386611994,1758426638954,-473.45370334,0.00019923,2]
[386611995,1758426640153,-1446.68,0.00019406,2]
[386611996,1758426640163,-113.01629666,0.00019923,2]
[386611997,1758426640173,-151.0,0.00019923,2]
[386611998,1758426640182,-151.0,0.00019923,2]
[386611999,1758426640191,-480.0,0.00019923,2]
[386612000,1758426640201,-1146.62,0.00019923,2]
[386612001,1758426640211,-500.0,0.00019975,2]
[386612002,1758426640220,-301.78350024,0.00019975,2]
[386612003,1758426640229,-160.41066514,0.0002,2]
[386612004,1758426640238,-160.0,0.0002,2]
[386612005,1758426640247,-480.0,0.00020021,2]
[386612006,1758426640255,-480.0,0.00020021,2]
[386612007,1758426640264,-500.58,0.00020021,2]
[386612008,1758426640274,-681.41,0.00020021,2]
[386612009,1758426640283,-952.44,0.00020022,2]
[386612010,1758426640292,-480.0,0.00020022,2]
[386612011,1758426640301,-480.0,0.00020022,2]
[386612012,1758426640310,-587.92,0.00020022,2]
[386612013,1758426640320,-495.78,0.00020022,2]
[386612014,1758426640329,-816.98,0.00020022,2]
[386612015,1758426640338,-480.0,0.00020022,2]
[386612016,1758426640347,-523.47,0.00020022,2]
[386612017,1758426640356,-480.0,0.00020022,2]
[386612018,1758426640365,-480.0,0.00020022,2]
[386612019,1758426640374,-751.21,0.00020022,2]
[386612021,1758426640383,-406.28143581,0.00020112,2]
[386612022,1758426640392,-649.74,0.00020122,2]
[386612023,1758426640401,-978.0,0.0002018,2]
[386612024,1758426640410,-634.0,0.0002018,2]
[386612025,1758426640419,-2158.0,0.0002018,2]
[386612026,1758426640428,-151.0,0.00020197,2]
[386612027,1758426640437,-154.34511413,0.00020197,2]
[386612028,1758426640446,-158.06445285,0.00020197,2]
[386612029,1758426640456,-480.0,0.00020197,2]
[386612030,1758426640465,-480.0,0.00020197,2]
[386612031,1758426640474,-480.0,0.00020197,2]
[386612032,1758426640483,-480.0,0.00020197,2]
[386612033,1758426640492,-480.0,0.00020197,2]
[386612034,1758426640501,-480.0,0.00020197,2]
[386612035,1758426640510,-480.0,0.00020197,2]
[386612036,1758426640519,-5866.09,0.00020197,2]
[386612037,1758426640528,-2636.11,0.00020197,2]
[386612038,1758426640536,-480.0,0.00020197,2]
[386612039,1758426640545,-480.0,0.00020197,2]
[386612040,1758426640554,-586.47,0.00020197,2]
[386612041,1758426640563,-480.0,0.00020197,2]
[386612042,1758426640572,-1146.62,0.00020197,2]
[386612043,1758426640581,-500.0,0.00020249,2]
[386612044,1758426640590,-160.41066514,0.00020274,2]
[386612045,1758426640599,-515.32588682,0.00020295,2]
[386612046,1758426640608,-480.0,0.00020295,2]
[386612047,1758426640618,-500.58,0.00020295,2]
[386612048,1758426640626,-681.41,0.00020295,2]
[386612049,1758426640635,-952.44,0.00020296,2]
[386612050,1758426640644,-480.0,0.00020296,2]
[386612051,1758426640658,-480.0,0.00020296,2]
[386612052,1758426640667,-587.92,0.00020296,2]
[386612053,1758426640677,-495.78,0.00020296,2]
[386612054,1758426640686,-816.98,0.00020296,2]
[386612055,1758426640696,-480.0,0.00020296,2]
[386612056,1758426640705,-523.47,0.00020296,2]
[386612057,1758426640715,-480.0,0.00020296,2]
[386612058,1758426640725,-480.0,0.00020296,2]
[386612059,1758426640735,-751.21,0.00020296,2]
[386612060,1758426640746,-352.67257095,0.00020325,2]
[386612061,1758426640756,-2893.37,0.0002033,2]
[386612062,1758426640765,-176.40489234,0.00020356,2]
[386612063,1758426640775,-649.74,0.00020396,2]
[386612064,1758426640785,-406.28143581,0.000204,2]
[386612065,1758426640794,-168.0,0.00020456,2]
[386612066,1758426640803,-197.15,0.00020463,3]
[386612067,1758426640813,-168.0,0.00020463,2]
[386612068,1758426640823,-198.74652277,0.00020471,2]
[386612069,1758426640832,-480.0,0.00020471,2]
[386612070,1758426640843,-538.92325289,0.00020471,2]
[386612071,1758426640852,-480.0,0.00020471,2]
[386612072,1758426640861,-480.0,0.00020471,2]
[386612073,1758426640871,-480.0,0.00020471,2]
[386612074,1758426640880,-480.0,0.00020471,2]
[386612075,1758426640890,-480.0,0.00020471,2]
[386612076,1758426640899,-5866.09,0.00020471,2]
[386612077,1758426640909,-2636.11,0.00020471,2]
[386612078,1758426640918,-480.0,0.00020471,2]
[386612079,1758426640928,-480.0,0.00020471,2]
[386612080,1758426640937,-586.47,0.00020471,2]
[386612081,1758426640947,-480.0,0.00020471,2]
[386612082,1758426640956,-1146.62,0.00020471,2]
[386612083,1758426640967,-501.32338214,0.00020473,2]
[386612084,1758426640976,-500.0,0.00020473,2]
[386612085,1758426640986,-500.0,0.00020473,2]
[386612086,1758426640996,-500.0,0.00020473,2]
[386612087,1758426641005,-500.0,0.00020473,2]
[386612088,1758426641014,-176.58642884,0.00020473,2]
[386612089,1758426641023,-500.0,0.00020473,2]
[386612090,1758426641033,-500.0,0.00020473,2]
[386612091,1758426641042,-500.0,0.00020473,2]
[386612092,1758426641052,-168.0,0.00020484,2]
[386612093,1758426641062,-591.49,0.0002049,3]
[386612094,1758426641071,-168.0,0.00020493,2]
[386612095,1758426641081,-500.0,0.000205,2]
[386612096,1758426641090,-84222.25002417,0.000205,2]
[386612097,1758426641176,-697.59919671,0.000205,2]
[386612098,1758426641189,-3119.80345517,0.000205,2]
[386612099,1758426641199,-399.0,0.000205,2]
[386612100,1758426641209,-500.0,0.00020523,2]
[386612101,1758426641218,-160.41066515,0.00020548,2]
[386612102,1758426641228,-500.58,0.00020569,2]
[386612103,1758426641237,-681.41,0.00020569,2]
[386612104,1758426641246,-952.44,0.0002057,2]
[386612105,1758426641256,-480.0,0.0002057,2]
[386612106,1758426641265,-480.0,0.0002057,2]
[386612107,1758426641274,-274.92415323,0.0002057,2]
[386612108,1758426641290,-254.94845988,0.0002057,2]
[386612109,1758426643272,-58.04738689,0.0002057,2]
[386612110,1758426643282,-495.78,0.0002057,2]
[386612111,1758426643292,-816.98,0.0002057,2]
[386612112,1758426643301,-480.0,0.0002057,2]
[386612113,1758426643311,-523.47,0.0002057,2]
[386612114,1758426643322,-480.0,0.0002057,2]
[386612115,1758426643331,-480.0,0.0002057,2]
[386612116,1758426643341,-484.46818258,0.0002057,2]
[386612117,1758426643353,-266.74181742,0.0002057,2]
[386612118,1758426643362,-500.0,0.000206,2]
[386612119,1758426643371,-83.07269838,0.0002067,2]
[386612126,1758426646316,-316.5354621,0.0002018,2]
[386612127,1758426779361,-250.0,0.0001935,2]
[386612128,1758426779390,-480.0,0.00019375,2]
[386612129,1758426779420,-585.06,0.00019375,2]
[386612130,1758426779450,-2102.21,0.00019375,2]
[386612131,1758426779478,-480.0,0.00019375,2]
[386612132,1758426779563,-2205.47,0.00019375,2]
[386612136,1758427083244,156.66666667,0.00017944,2]
[386612137,1758427143025,156.66666667,0.00017944,2]
[386612138,1758427203196,156.66666667,0.00017944,2]
[386612139,1758427265714,-158.557979,0.00018561,2]
[386612140,1758427265744,-166.6919879,0.00018571,2]
[386612141,1758427265773,-175.6204088,0.00018738,2]
[386612142,1758427265801,-160.0,0.00019374,2]
[386612143,1758427265830,-1200.0,0.00019374,2]
[386612144,1758427265859,-300.0,0.00019374,2]
[386612145,1758427265887,-480.0,0.00019375,2]
[386612146,1758427265917,-2014.62,0.00019375,2]
[386612147,1758427265946,-128.3492486,0.00019375,2]
[386612148,1758427285598,-350.0,0.00019374,2]
[386612149,1758427285626,-175.42222571,0.00019374,2]
[386612150,1758427285657,-500.0,0.00019374,2]
[386612151,1758427285690,-500.0,0.00019374,2]
[386612152,1758427285720,-500.0,0.00019374,2]
[386612153,1758427285750,-500.0,0.00019374,2]
[386612154,1758427285781,-500.0,0.00019374,2]
[386612155,1758427285813,-500.0,0.00019374,2]
[386612156,1758427285845,-381.75479984,0.00019374,2]
[386612157,1758427285874,-432.3307514,0.00019375,2]
[386612158,1758427285902,-480.0,0.00019375,2]
[386612159,1758427286075,-360.9944461,0.00019375,2]
[386612160,1758427295483,-119.0055539,0.00019375,2]
[386612161,1758427295515,-950.85,0.00019375,2]
[386612162,1758427295549,-3159.1488922,0.00019375,2]
[386612163,1758427295599,-1542.0011078,0.00019375,2]
[386612165,1758427465984,-300.0,0.00019373,2]
[386612166,1758427466017,-500.0,0.00019374,2]
[386612167,1758427466049,-229.82378769,0.00019374,2]
[386612168,1758427466080,-500.0,0.00019374,2]
[386612169,1758427466107,-175.42222571,0.00019374,2]
[386612170,1758427466137,-1197.0,0.00019374,2]
[386612171,1758427466166,-537.32,0.00019375,2]
[386612172,1758427466196,-480.0,0.00019375,2]
[386612173,1758427466329,-4505.27,0.00019375,2]
[386612174,1758427466357,-480.0,0.00019375,2]
[386612175,1758427466424,-500.0,0.000194,2]
[386612176,1758427466433,-1180.8779732,0.000194,2]
[386612177,1758427466449,-480.0,0.000194,2]
[386612178,1758427466463,-29.47,0.000194,2]
[386612179,1758427480886,-375.75053332,0.00019399,2]
[386612180,1758427480918,-9248.50893336,0.000194,2]
[386612191,1758427832617,-480.0,0.00019375,2]
[386612193,1758427832627,-514.93,0.00019375,2]
[386612195,1758427832636,-1391.45,0.00019391,2]
[386612198,1758427832646,-374.79804919,0.00019416,2]
[386612199,1758427832655,-500.0,0.000196,2]
[386612201,1758427832665,-480.0,0.00019647,2]
[386612202,1758427832675,-480.0,0.00019647,2]
[386612204,1758427832685,-300.0,0.00019647,2]
[386612206,1758427832695,-480.0,0.00019648,2]
[386612208,1758427832704,-480.0,0.00019648,2]
[386612209,1758427832715,-482.72608496,0.00019648,2]
[386612211,1758427832725,-485.52988133,0.00019648,2]
[386612213,1758427832734,-162.15771418,0.00019648,2]
[386612214,1758427832749,-458.24228582,0.00019648,2]
[386612216,1758427832762,-480.0,0.00019648,2]
[386612218,1758427832773,-99.8745387,0.00019648,2]
[386612223,1758427832793,-380.1254613,0.00019648,2]
[386612225,1758427832802,-37.14382428,0.00019648,2]
[386612232,1758427832844,-442.85617572,0.00019648,2]
[386612235,1758427832857,-509.93,0.00019648,2]
[386612238,1758427832867,-248.35431469,0.00019648,2]
[386612281,1758427838352,-231.64568531,0.00019648,2]
[386612283,1758427838362,-127.07431649,0.00019648,2]
[386612288,1758427838405,-352.92568351,0.00019648,2]
[386612290,1758427838415,-434.46364808,0.00019648,2]
[386612292,1758427838425,-483.54765946,0.00019648,2]
[386612294,1758427838434,-480.0,0.00019648,2]
[386612296,1758427838444,-480.0,0.00019648,2]
[386612298,1758427838453,-480.0,0.00019648,2]
[386612300,1758427838463,-692.89,0.00019648,2]
[386612302,1758427838472,-480.0,0.00019648,2]
[386612304,1758427838481,-480.0,0.00019648,2]
[386612306,1758427838490,-480.0,0.00019648,2]
[386612308,1758427838500,-480.0,0.00019648,2]
[386612310,1758427838509,-480.0,0.00019648,2]
[386612312,1758427838518,-833.54,0.00019648,2]
[386612314,1758427838527,-480.0,0.00019648,2]
[386612316,1758427838536,-480.0,0.00019649,2]
[386612318,1758427838545,-480.0,0.00019649,2]
[386612320,1758427838555,-514.93,0.00019649,2]
[386612322,1758427838564,-626.01,0.00019746,2]
[386612324,1758427838573,-480.0,0.00019747,2]
[386612326,1758427838582,-240.735,0.00019747,2]
[386612328,1758427838592,-480.0,0.00019747,2]
[386612330,1758427838601,-480.0,0.00019747,2]
[386612332,1758427838610,-480.0,0.00019747,2]
[386612334,1758427838619,-199.80998673,0.00019747,2]
[386612336,1758427838629,-209.03892152,0.00019747,2]
[386612338,1758427838638,-484.2134861,0.00019748,2]
[386612340,1758427838648,-480.0,0.00019748,2]
[386612342,1758427838657,-480.0,0.00019748,2]
[386612344,1758427838667,-480.0,0.00019748,2]
[386612346,1758427838676,-1930.67,0.00019748,2]
[386612348,1758427838685,-480.0,0.00019748,2]
[386612350,1758427838695,-480.0,0.00019748,2]
[386612352,1758427838704,-911.23,0.00019748,2]
[386612354,1758427838713,-3768.76898276,0.00019748,2]
[386612356,1758427838725,-548.78101724,0.00019748,2]
[386612358,1758427838734,-168.0,0.00019761,2]
[386612360,1758427838743,-168.0,0.00019768,2]
[386612362,1758427838753,-129.69398502,0.000199,2]
[386612842,1758427843509,-432.40790632,0.00019648,2]
[386613151,1758427846368,-1437.1938843,0.00019648,2]
[386613163,1758427846472,-6354.77708573,0.00019648,2]
[386613165,1758427846484,-8679.49145041,0.00019648,2]
[386613170,1758427846526,-527.3554621,0.00019648,2]
[386613536,1758428843133,-158.557979,0.00018686,2]
[386613537,1758428843153,-160.0,0.000194,2]
[386613538,1758428843175,-630.74019349,0.00019403,2]
[386613540,1758428869738,10000.01,0.00018,2]
[386613541,1758428869761,10000.01,0.00018,2]
[386613542,1758428869783,10000.01,0.00018,2]
[386613543,1758428869805,10000.01,0.00018,2]
[386613544,1758428869828,10000.01,0.00018,2]
[386613545,1758428869849,10000.01,0.00018,2]
[386613546,1758428869870,10000.01,0.00018,2]
[386613547,1758428869891,4999.36777687,0.00018,2]
[386613548,1758428893688,418.81060728,0.00010618,2]
[386613549,1758428901228,1125.0,0.00024,30]
[386613550,1758428902113,1125.0,0.00023,30]
[386613551,1758428902569,1003.47170541,0.00015,2]
[386613552,1758428904658,2104.44628776,0.000176,2]
[386613553,1758428914218,1473.91362268,0.00017,2]
[386613554,1758428914242,10000.01,0.00017,2]
[386613555,1758428914263,10000.01,0.00017,2]
[386613556,1758428914287,10000.01,0.00017,2]
[386613557,1758428914308,10000.01,0.00017,2]
[386613558,1758428914330,10000.01,0.00017,2]
[386613559,1758428914350,10000.01,0.00017,2]
[386613560,1758428914373,10000.01,0.00017,2]
[386613561,1758428914397,10000.01,0.00017,2]
[386613562,1758428914420,7575.05250657,0.00017,2]
[386613563,1758428916693,2424.95749343,0.00015,2]
[386613564,1758428916720,414.82987984,0.00015,2]
[386613565,1758428916857,267.4,0.00015,2]
[386613566,1758428916883,6593.99274136,0.00015,2]
[386613567,1758428924105,10000.01,0.0001,2]
[386613568,1758428924126,7757.05796198,0.0001,2]
[386613569,1758428925450,2242.95203802,0.0001,2]
[386613570,1758428925471,10000.01,0.0001,2]
[386613571,1758428925493,10000.01,0.0001,2]
[386613572,1758428925513,10000.01,0.0001,2]
[386613573,1758428925535,4757.01796198,0.0001,2]
[386613574,1758428925801,1728.99161473,0.0001,2]
[386613575,1758428943758,-209.24944011,0.00019062,2]
[386613576,1758428945250,-90.75055989,0.00019062,2]
[386613577,1758428945272,-148.48491878,0.00019063,7]
[386613578,1758428946141,-3529.02217593,0.00019063,7]
[386613579,1758428948247,-2348.21315301,0.00019063,7]
[386613580,1758428950415,-244.14142785,0.00019063,7]
[386613581,1758428952083,-7221.36370497,0.00019063,7]
[386613582,1758428952103,-2743.3861839,0.00019205,5]
[386613619,1758429032671,-1000.0,0.00018641,2]
[386613622,1758429032681,-155.59348227,0.00019104,2]
[386613626,1758429032690,-327.32550515,0.00019205,5]
[386613627,1758429032700,-1404.64,0.0001942,2]
[386613630,1758429032709,-1200.0,0.00019638,2]
[386613631,1758429032720,-300.0,0.00019639,2]
[386613632,1758429032729,-300.0,0.00019639,2]
[386613633,1758429032738,-300.0,0.00019639,2]
[386613634,1758429032747,-300.0,0.00019639,2]
[386613635,1758429032756,-300.0,0.00019639,2]
[386613636,1758429032766,-10021.0,0.0001964,2]
[386613637,1758429032775,-10038.24033998,0.0001964,2]
[386613638,1758429032791,-4406.62881838,0.0001964,2]
[386613639,1758429032800,-594.55,0.00019646,2]
[386613640,1758429032810,-480.0,0.00019646,2]
[386613641,1758429032819,-488.68,0.00019646,2]
[386613642,1758429032828,-487.60715189,0.00019646,2]
[386613643,1758429032838,-480.0,0.00019646,2]